bitfinex/quotes_ETHUSD_20230116
["timestamp","ask_amount","ask_price","bid_price","bid_amount"]
[1673878595710,35.01665094,1541.4,1541.0,11.55506]
[1673878596112,35.50365094,1541.4,1541.0,11.55506]
[1673878596281,35.50365094,1541.4,1541.0,8.55506]
[1673878596760,0.96345556,1541.3,1541.0,8.55506]
[1673878597067,17.63457899,1541.3,1541.0,0.066]
[1673878597294,6.97555,1541.2,1540.9,0.066]
[1673878597475,20.91612556,1541.2,1540.9,0.066]
[1673878597643,20.98212556,1541.2,1540.8,6.55595]
[1673878597852,20.98212556,1541.2,1540.8,0.066]
[1673878598124,20.98212556,1541.2,1540.7,44.77498]
[1673878598125,2.09821256,1541.1,1540.7,44.77498]
[1673878598332,16.03974812,1541.1,1540.7,6.55628]
[1673878598491,24.04010146,1541.1,1540.7,0.066]
[1673878598886,24.04010146,1541.1,1540.6,14.46566]
[1673878599019,44.18730146,1541.1,1540.6,17.73844678]
[1673878599702,44.18730146,1541.1,1540.7,5.0]
[1673878599875,44.18730146,1541.1,1540.7,5.066]
[1673878600540,44.18730146,1541.1,1540.7,11.55655]
[1673878600749,42.74211812,1541.1,1540.7,11.55655]
[1673878601559,42.74211812,1541.1,1540.7,18.0471]
[1673878602524,6.97639,1541.0,1540.7,15.0471]
[1673878602708,7.04239,1541.0,1540.7,8.55655]
[1673878602926,6.55529,1541.0,1540.7,8.55655]
[1673878604871,6.55529,1541.0,1540.7,6.55655]
[1673878605454,1.02945556,1541.0,1540.7,6.55655]
[1673878605650,0.96345556,1541.0,1540.7,13.0471]
[1673878609138,0.96345556,1541.0,1540.7,6.55655]
[1673878609139,7.45281556,1541.0,1540.7,6.55655]
[1673878609148,7.51881556,1541.0,1540.7,6.55655]
[1673878609277,14.00817556,1541.0,1540.7,0.066]
[1673878609577,14.00817556,1541.0,1540.6,27.44688]
[1673878610057,14.00817556,1541.0,1540.6,27.4433411]
[1673878610946,15.4533589,1541.0,1540.6,27.4433411]
[1673878611135,14.00817556,1541.0,1540.6,27.4433411]
[1673878611379,15.4533589,1541.0,1540.6,27.4433411]
[1673878612154,8.9639989,1541.0,1540.6,27.4433411]
[1673878612752,7.51881556,1541.0,1540.6,27.4433411]
[1673878613966,16.9662889,1541.0,1540.6,6.5567]
[1673878614180,2.8958389,1540.9,1540.6,0.066]
[1673878614442,15.8756689,1540.9,1540.5,6.55721]
[1673878614596,15.9416689,1540.9,1540.5,13.0486]
[1673878614809,18.5287559,1540.9,1540.5,13.0486]
[1673878615441,25.0187959,1540.9,1540.5,0.066]
[1673878615710,2.47645556,1540.8,1540.4,37.07113434]
[1673878615926,27.17447556,1540.8,1540.4,6.76113434]
[1673878616077,0.4872,1540.7,1540.4,0.26967434]
[1673878616442,0.96345556,1540.6,1540.4,0.20367434]
[1673878616806,13.96558428,1540.6,1540.4,0.20367434]
[1673878617017,8.21869,1540.5,1540.4,0.20367434]
[1673878617227,8.28469,1540.5,1540.4,0.20367434]
[1673878617476,4.26975556,1540.5,1540.4,0.20367434]
[1673878617706,4.97724532,1540.5,1540.4,0.20367434]
[1673878617956,11.46863532,1540.5,1540.4,0.20367434]
[1673878618107,11.53463532,1540.5,1540.4,0.20367434]
[1673878618560,10.57117976,1540.5,1540.4,0.20367434]
[1673878620051,17.06256976,1540.5,1540.4,0.20367434]
[1673878620686,17.06256976,1540.5,1540.4,0.15367434]
[1673878621903,23.55395976,1540.5,1540.4,0.15367434]
[1673878624422,30.74838544,1540.5,1540.4,0.15367434]
[1673878624956,29.3032021,1540.5,1540.4,0.15367434]
[1673878625166,40.1730021,1540.5,1540.4,0.15367434]
[1673878625404,42.49452462,1540.5,1540.4,0.15367434]
[1673878625621,42.49492847,1540.5,1540.4,0.15367434]
[1673878625802,41.53106906,1540.5,1540.4,0.15367434]
[1673878626156,43.45798018,1540.5,1540.4,0.10332882]
[1673878626728,41.53106906,1540.5,1540.4,0.10332882]
[1673878627205,42.49433034,1540.5,1540.4,0.10332882]
[1673878627466,61.65342454,1540.5,1540.4,0.10332882]
[1673878627678,64.65342454,1540.5,1540.4,0.10332882]
[1673878627921,64.65342454,1540.5,1540.4,0.04173492]
[1673878627922,70.72651342,1540.5,1540.4,0.04173492]
[1673878628139,74.80926452,1540.5,1540.2,0.59408]
[1673878628363,28.98696,1540.3,1540.2,0.59408]
[1673878628534,43.39217666,1540.3,1540.2,0.59408]
[1673878628729,42.96948786,1540.3,1540.2,0.45268]
[1673878628944,42.96948786,1540.3,1540.0,0.0273911]
[1673878628945,2.0,1540.2,1540.0,0.0273911]
[1673878629170,4.77978678,1540.1,1540.0,0.0273911]
[1673878629363,26.62740615,1540.1,1540.0,0.0273911]
[1673878629601,27.18080615,1540.1,1540.0,0.0273911]
[1673878630461,27.82714533,1540.1,1540.0,0.0273911]
[1673878630676,30.82714533,1540.1,1540.0,0.0273911]
[1673878631724,31.80911094,1540.1,1540.0,0.0273911]
[1673878632295,30.84710405,1540.1,1540.0,0.0273911]
[1673878632559,30.84710405,1540.1,1539.9,0.19732767]
[1673878632560,2.0,1540.0,1539.9,0.18342166]
[1673878632770,20.19747649,1540.0,1539.9,0.18342166]
[1673878632954,29.54236327,1540.0,1539.9,0.18342166]
[1673878633157,26.26957649,1540.0,1539.9,0.18342166]
[1673878633382,24.26957649,1540.0,1539.9,0.18342166]
[1673878633719,27.54236327,1540.0,1539.9,0.18342166]
[1673878636556,27.54236327,1540.0,1539.8,0.21474095]
[1673878636557,46.20202683,1540.0,1539.8,0.19118054]
[1673878636773,12.63952627,1539.9,1539.8,0.19118054]
[1673878637589,52.49581635,1539.9,1539.8,0.19118054]
[1673878638041,52.49581635,1539.9,1538.8,0.2673681]
[1673878638042,3.27278678,1539.5,1538.8,0.2673681]
[1673878638056,3.27278678,1539.5,1538.0,0.02]
[1673878638057,6.49956,1538.6,1538.0,0.02]
[1673878638064,6.811,1538.4,1538.0,0.02]
[1673878638067,0.066,1538.4,1538.0,0.02]
[1673878638075,7.33306009,1538.5,1538.0,0.02]
[1673878638295,11.83328009,1538.5,1538.0,0.02]
[1673878638552,2.92632801,1538.4,1538.0,0.02]
[1673878638714,19.50228,1538.3,1538.0,0.02]
[1673878638927,8.61104005,1538.3,1538.0,0.02]
[1673878639177,0.59928005,1538.3,1538.0,0.02]
[1673878639392,1.5,1538.1,1538.0,0.02]
[1673878639605,17.36289806,1538.1,1538.0,0.02]
[1673878639755,15.92137806,1538.1,1538.0,0.02]
[1673878639966,36.62323724,1538.1,1537.6,1.5756766]
[1673878640231,6.811,1537.8,1537.6,1.5756766]
[1673878640524,6.811,1537.8,1536.5,6.58794]
[1673878640525,19.51242,1537.5,1536.5,6.58794]
[1673878640618,19.51242,1537.5,1536.1,1.94396353]
[1673878640619,22.0,1536.9,1535.8,1.45594304]
[1673878640835,1.513,1536.6,1535.5,8.56425304]
[1673878641220,0.54031865,1536.6,1535.7,6.51159]
[1673878641428,0.54031865,1536.6,1536.1,1.513]
[1673878641588,0.54031865,1536.6,1536.0,1.498]
[1673878641589,0.54031865,1536.6,1536.3,1.513]
[1673878641778,0.54031865,1536.6,1536.5,1.513]
[1673878641987,0.54031865,1537.0,1536.4,13.23474]
[1673878642249,0.56027737,1537.0,1536.5,6.50829]
[1673878642459,0.56027737,1537.0,1536.5,6.51029]
[1673878642782,0.54031865,1537.0,1536.9,1.505]
[1673878643088,1.2901227,1537.5,1536.9,29.1949]
[1673878643299,1.82254038,1537.5,1536.9,27.6919]
[1673878643472,1.82254038,1537.5,1537.4,1.505]
[1673878643679,1.82254038,1537.5,1537.4,3.018]
[1673878644041,0.066,1537.9,1537.5,1.513]
[1673878644207,0.066,1537.9,1537.8,3.024]
[1673878644208,0.53241768,1537.9,1537.8,3.024]
[1673878644401,0.53241768,1537.9,1537.8,6.024]
[1673878644616,0.56574551,1537.9,1537.8,6.026]
[1673878644872,0.56574551,1537.9,1537.8,0.002]
[1673878645078,0.56574551,1537.9,1537.7,0.82543199]
[1673878645293,0.56574551,1537.8,1537.7,0.1042732]
[1673878645546,0.56574551,1537.8,1537.6,0.1513]
[1673878645730,0.56574551,1537.9,1537.6,0.1513]
[1673878645941,0.56574551,1537.9,1537.5,0.002]
[1673878646120,0.56574551,1537.9,1537.4,6.50609]
[1673878646499,0.01995872,1537.8,1537.4,0.002]
[1673878646636,0.55930999,1537.8,1537.3,6.50671]
[1673878646845,0.55930999,1537.8,1537.3,0.002]
[1673878647052,1.507,1537.7,1537.2,0.002]
[1673878647325,0.01995872,1537.6,1537.0,8.02115]
[1673878647538,1.20564917,1537.6,1537.1,6.50573]
[1673878647681,1.20564917,1537.6,1537.1,6.50773]
[1673878648374,1.20564917,1537.6,1537.1,0.002]
[1673878648536,1.52573409,1537.6,1537.1,3.808515]
[1673878648775,3.03873409,1537.6,1537.1,0.808515]
[1673878650294,0.5574367,1537.5,1537.1,0.808515]
[1673878650799,0.5574367,1537.5,1537.1,7.314145]
[1673878650802,0.5574367,1537.5,1537.2,4.511]
[1673878650836,0.5574367,1537.5,1537.3,6.95601]
[1673878650837,0.54455504,1537.5,1537.3,6.95601]
[1673878651090,0.54455504,1537.5,1537.3,13.46292]
[1673878651524,0.54455504,1537.5,1537.3,0.4531]
[1673878651843,0.54455504,1537.5,1537.3,0.4511]
[1673878652209,0.54455504,1537.5,1537.1,7.380145]
[1673878652474,1.503,1537.7,1537.1,13.821895]
[1673878652475,0.54455504,1537.6,1537.1,13.821895]
[1673878652637,0.56985812,1537.6,1537.1,13.821895]
[1673878652995,0.56985812,1537.6,1537.1,15.334895]
[1673878653418,0.56985812,1537.6,1537.3,6.50469]
[1673878653613,0.56985812,1537.6,1537.3,8.13494868]
[1673878653785,0.56985812,1537.6,1537.3,14.63985868]
[1673878654039,0.56985812,1537.6,1537.3,18.15285868]
[1673878654196,0.56985812,1537.6,1537.4,3.27278678]
[1673878654413,0.54341186,1537.6,1537.5,24.29796678]
[1673878654677,0.54341186,1537.6,1537.5,31.24276346]
[1673878654864,0.54341186,1537.6,1537.5,31.47276346]
[1673878655198,0.54341186,1537.9,1537.5,31.47276346]
[1673878655463,0.54341186,1537.9,1537.7,1.513]
[1673878655643,0.54341186,1537.9,1537.7,4.513]
[1673878655794,0.54341186,1537.9,1537.8,13.45688]
[1673878655998,0.54341186,1537.9,1537.8,13.45888]
[1673878656837,0.54341186,1537.9,1537.8,6.95609]
[1673878657902,0.54341186,1537.9,1537.8,22.97266678]
[1673878658328,0.01428332,1538.3,1537.9,0.543]
[1673878658542,0.01428332,1538.3,1538.0,23.00863678]
[1673878658780,0.01428332,1538.3,1538.2,19.5033]
[1673878658942,0.01428332,1538.3,1538.2,26.02608678]
[1673878659148,0.01428332,1538.3,1538.2,29.02608678]
[1673878660886,0.01428332,1538.3,1538.2,11.0161]
[1673878661625,0.01428332,1538.3,1538.2,0.002]
[1673878661837,0.01428332,1538.3,1538.0,6.50158]
[1673878661838,0.00293034,1538.1,1538.0,6.50158]
[1673878662073,0.00293034,1538.1,1538.0,0.002]
[1673878662350,0.00293034,1538.1,1537.9,6.50402]
[1673878664196,0.00293034,1538.1,1537.9,13.00639]
[1673878664246,0.00293034,1538.1,1537.9,15.360115]
[1673878664367,0.00293034,1538.1,1538.0,2.0]
[1673878664553,0.00040457,1538.1,1538.0,2.0]
[1673878664558,0.00040457,1538.1,1538.0,8.50195]
[1673878664743,0.00040457,1538.1,1538.0,15.0059]
[1673878665038,0.00040457,1538.1,1538.0,22.32755128]
[1673878665251,0.00040457,1538.1,1538.0,25.55755128]
[1673878666456,0.00040457,1538.1,1538.0,32.36855128]
[1673878666647,0.00040457,1538.1,1538.0,33.92244128]
[1673878667530,0.00040457,1538.1,1538.0,25.60644128]
[1673878667871,0.00040457,1538.1,1538.0,25.66055128]
[1673878669387,0.00040457,1538.1,1538.0,22.32355128]
[1673878669631,1.24040457,1538.1,1538.0,13.0059]
[1673878669763,0.00040457,1538.1,1538.0,13.0059]
[1673878670430,1.24040457,1538.1,1538.0,13.0059]
[1673878670716,0.00040457,1538.1,1538.0,13.0059]
[1673878671261,1.26036329,1538.1,1538.0,0.002]
[1673878671413,1.43519962,1538.1,1537.9,0.002]
[1673878671625,1.43519962,1538.1,1537.8,13.00695]
[1673878674672,1.43519962,1538.1,1537.8,0.002]
[1673878674886,1.9911,1538.0,1537.7,0.002]
[1673878677146,1.71011,1537.9,1537.6,6.50535]
[1673878677983,6.99011,1538.0,1537.7,3.27278678]
[1673878677984,2.0671,1538.0,1537.7,3.27278678]
[1673878678195,0.6632409,1538.1,1537.7,3.27278678]
[1673878678354,0.1752409,1538.1,1537.7,3.27278678]
[1673878678767,0.1752409,1538.1,1537.8,19.50837]
[1673878678973,0.1752409,1538.1,1537.8,19.51037]
[1673878679222,0.00040457,1538.1,1537.8,22.78315678]
[1673878679440,0.64674375,1538.1,1537.8,0.002]
[1673878679626,4.40753053,1538.1,1537.6,6.50355]
[1673878679839,1.13474375,1538.1,1537.6,6.50555]
[1673878680136,1.15470247,1538.1,1537.6,6.50555]
[1673878680369,0.11547025,1538.0,1537.6,6.50555]
[1673878680587,1.62847025,1538.0,1537.6,6.50555]
[1673878680807,1.15470247,1538.1,1537.6,13.00919]
[1673878681013,0.02036329,1538.1,1537.6,13.00919]
[1673878681223,0.02036329,1538.1,1537.7,3.27278678]
[1673878681550,0.02036329,1538.1,1537.8,9.50271]
[1673878681708,0.02036329,1538.1,1537.8,0.002]
[1673878681923,1.12055137,1538.1,1537.7,6.50484]
[1673878682502,0.4881,1538.0,1537.7,0.002]
[1673878682724,0.4881,1538.0,1537.5,8.50573]
[1673878682725,1.46201486,1538.0,1537.5,8.50573]
[1673878682863,0.95395614,1537.9,1537.7,3.3]
[1673878683078,2.48665795,1537.9,1537.7,3.3]
[1673878683327,1.9767658,1537.8,1537.7,3.3]
[1673878683609,0.4881,1537.8,1537.7,9.80321]
[1673878683820,0.4881,1537.9,1537.7,9.80521]
[1673878684030,0.64633918,1537.8,1537.7,3.302]
[1673878684231,0.64633918,1537.8,1537.3,6.50462]
[1673878684232,2.94029532,1537.8,1537.4,6.50425]
[1673878684442,5.65426666,1537.7,1537.4,0.002]
[1673878684669,5.65426666,1537.7,1537.2,0.002]
[1673878684670,0.95395614,1537.5,1537.2,0.002]
[1673878684924,3.27278678,1537.4,1537.0,0.25395161]
[1673878685151,1.337,1537.1,1537.0,0.25395161]
[1673878685708,5.74452596,1537.1,1536.9,0.25395161]
[1673878685874,5.11118678,1537.0,1536.9,0.25395161]
[1673878686086,15.05408938,1537.0,1536.9,0.25395161]
[1673878686274,33.06278856,1537.0,1536.9,0.25395161]
[1673878686486,0.06749168,1536.8,1536.5,0.26884696]
[1673878686701,2.7,1536.6,1536.5,0.26884696]
[1673878687030,18.98852678,1536.6,1536.5,0.26884696]
[1673878687247,23.35904756,1536.6,1536.5,0.26884696]
[1673878687764,35.96704756,1536.6,1536.5,0.26884696]
[1673878687975,40.96704756,1536.6,1536.5,0.26884696]
[1673878688140,37.69426078,1536.6,1536.5,0.26884696]
[1673878688558,37.0479216,1536.6,1536.5,0.26884696]
[1673878688973,40.32070838,1536.6,1536.5,0.26884696]
[1673878689185,43.96704756,1536.6,1536.5,0.26884696]
[1673878689394,43.96704756,1536.6,1536.3,0.26884696]
[1673878689395,0.01995872,1536.5,1536.3,0.26884696]
[1673878689605,4.61378678,1536.4,1536.3,0.26884696]
[1673878689820,24.13994678,1536.4,1536.3,0.26884696]
[1673878690082,24.69454678,1536.4,1536.3,0.26884696]
[1673878690445,21.42176,1536.4,1536.3,0.26884696]
[1673878691098,7.06332,1536.4,1536.3,0.26884696]
[1673878691319,7.06332,1536.4,1536.3,1.47584696]
[1673878691320,0.5546,1536.4,1536.3,1.47584696]
[1673878691533,2.066,1536.5,1536.3,1.65031635]
[1673878691746,17.674,1536.6,1536.3,1.65031635]
[1673878691958,17.674,1536.6,1536.3,4.92310313]
[1673878692183,17.674,1536.6,1536.3,11.43212313]
[1673878692399,17.674,1536.6,1536.4,3.27278678]
[1673878692549,12.674,1536.6,1536.5,3.60006546]
[1673878692759,0.066,1536.6,1536.5,16.61664546]
[1673878693018,13.8775,1537.1,1536.5,16.84664546]
[1673878693208,4.62278678,1537.0,1536.5,2.0]
[1673878693420,17.62840678,1536.9,1536.5,2.0]
[1673878693763,17.62840678,1536.9,1536.3,0.33484696]
[1673878693764,3.27278678,1536.8,1536.3,0.33484696]
[1673878694070,22.79576678,1536.7,1536.3,0.26884696]
[1673878694242,1.34,1536.4,1536.3,0.26884696]
[1673878694456,1.474,1536.4,1536.3,0.26884696]
[1673878694705,2.12033918,1536.4,1536.3,0.26884696]
[1673878694926,0.78033918,1536.4,1536.3,0.26884696]
[1673878695277,11.91184596,1536.4,1536.2,0.26884696]
[1673878695488,6.62278678,1536.3,1536.2,0.26884696]
[1673878695802,24.39432338,1536.3,1535.6,0.0660149]
[1673878695975,3.27278678,1536.0,1535.6,0.0060149]
[1673878696285,35.77144678,1535.9,1535.6,0.0060149]
[1673878696503,22.22204,1535.7,1535.6,0.0060149]
[1673878696650,25.56082678,1535.7,1535.6,0.0060149]
[1673878696863,26.69596596,1535.7,1535.6,0.0060149]
[1673878697120,0.71233918,1535.7,1535.6,1.2130149]
[1673878697334,0.002,1535.7,1535.6,1.2130149]
[1673878697548,13.0299,1535.9,1535.6,2.75709406]
[1673878697549,13.0319,1535.9,1535.6,2.75709406]
[1673878697864,13.0319,1535.9,1535.6,1.41809406]
[1673878698021,13.0319,1535.9,1535.6,0.0060149]
[1673878698022,3.27278678,1535.8,1535.6,0.0060149]
[1673878698230,3.27278678,1535.8,1534.6,0.0379208]
[1673878698231,0.77962908,1534.9,1534.6,0.0379208]
[1673878698488,14.0,1534.7,1534.2,0.066]
[1673878698809,9.21772,1534.3,1533.6,0.126]
[1673878698961,2.0,1534.2,1533.7,0.03154]
[1673878699170,2.0,1534.2,1533.7,0.00054]
[1673878699171,1.341,1533.8,1533.7,0.00054]
[1673878699437,1.341,1533.8,1533.0,0.006]
[1673878699438,0.002,1533.6,1533.0,0.006]
[1673878699599,0.002,1533.6,1533.0,0.10124958]
[1673878699818,0.4895,1533.5,1533.0,6.62439958]
[1673878700032,0.4895,1533.5,1533.0,0.10124958]
[1673878700033,0.01995872,1533.5,1533.0,0.10124958]
[1673878700267,13.04209,1533.5,1533.0,0.10124958]
[1673878700434,0.066,1533.5,1533.2,3.0]
[1673878700645,0.002,1533.6,1533.4,1.35]
[1673878700956,0.002,1533.6,1533.2,10.0]
[1673878701200,0.002,1533.6,1533.5,1.35]
[1673878701583,0.097,1534.2,1533.5,9.21503]
[1673878701797,0.097,1534.4,1533.5,13.04206]
[1673878702078,0.097,1534.5,1533.7,3.0]
[1673878702220,0.093,1534.5,1534.2,1.35]
[1673878702428,0.097,1534.8,1534.2,3.35]
[1673878702641,0.097,1534.9,1534.6,1.35]
[1673878702889,0.097,1535.2,1534.5,7.85575]
[1673878703125,0.097,1535.3,1534.9,1.35]
[1673878703263,0.095,1535.3,1534.7,0.002]
[1673878703479,9.00145,1535.5,1534.6,0.785575]
[1673878703690,1.831,1535.2,1534.5,0.066]
[1673878704010,0.097,1535.3,1534.7,1.34]
[1673878704214,64.74932862,1535.4,1534.8,6.87928]
[1673878704425,64.74932862,1535.4,1535.2,1.35]
[1673878704690,64.74932862,1535.4,1535.2,3.0]
[1673878704920,0.097,1535.4,1535.1,0.066]
[1673878705054,1.981,1535.7,1534.8,6.531]
[1673878705055,7.86169,1535.7,1534.8,6.531]
[1673878705268,0.097,1535.7,1535.1,6.51415]
[1673878705534,0.097,1535.7,1535.3,1.58]
[1673878705535,0.002,1535.7,1535.3,1.58]
[1673878705862,0.03139,1536.0,1535.3,4.35]
[1673878706161,0.03139,1536.0,1535.9,14.37168]
[1673878706330,0.03139,1536.0,1535.9,16.25168]
[1673878706543,0.03139,1536.0,1535.9,6.74084]
[1673878706791,0.03139,1536.0,1535.9,2.20013223]
[1673878706945,0.03139,1536.0,1535.9,0.87772122]
[1673878707157,0.03139,1536.0,1535.9,11.96856122]
[1673878707365,0.03139,1536.0,1535.9,13.96856122]
[1673878707806,0.01139299,1536.5,1536.0,2.03091]
[1673878708057,0.01139299,1536.5,1536.1,0.23]
[1673878708058,0.03139,1536.4,1536.1,0.23]
[1673878708223,0.03139,1536.4,1536.3,1.35]
[1673878708437,0.03139,1536.4,1536.2,13.01896]
[1673878708438,0.03139,1536.4,1536.2,13.98321626]
[1673878708793,0.03139,1536.4,1536.1,8.465721]
[1673878709008,0.01995872,1536.3,1536.0,0.066]
[1673878709217,0.01995872,1536.3,1535.7,6.54129]
[1673878709218,0.03139,1536.2,1535.7,13.02858]
[1673878709387,0.03139,1536.2,1535.8,7.814108]
[1673878709740,0.10839299,1536.5,1535.8,7.814108]
[1673878709925,0.01139299,1536.5,1535.8,7.814108]
[1673878710140,0.03139,1536.4,1536.3,7.85381]
[1673878710349,0.03139,1536.4,1536.3,10.85381]
[1673878710558,0.03139,1536.4,1536.3,3.0]
[1673878711862,1.27139,1536.4,1536.2,0.066]
[1673878712016,1.27139,1536.4,1535.9,0.066]
[1673878712017,1.3996683,1536.4,1535.9,0.066]
[1673878712231,0.03139,1536.4,1535.9,9.78361678]
[1673878712535,0.03139,1536.4,1536.2,3.27278678]
[1673878712757,0.03139,1536.4,1536.3,3.27278678]
[1673878712959,1.27139,1536.4,1536.2,0.066]
[1673878713162,2.04600748,1536.4,1535.9,0.006]
[1673878713374,0.67772918,1536.4,1536.0,3.27278678]
[1673878713569,0.03139,1536.4,1536.1,3.27278678]
[1673878713822,0.03139,1536.4,1536.2,3.27278678]
[1673878714202,0.03139,1536.4,1536.3,3.27278678]
[1673878714416,0.01139299,1536.5,1536.3,0.68688256]
[1673878714693,0.01139299,1536.5,1536.4,9.24164363]
[1673878714887,0.01139299,1536.5,1536.4,9.47164363]
[1673878715094,0.01139299,1536.5,1536.4,2.89423537]
[1673878715250,1.25139299,1536.5,1536.4,1.35]
[1673878715468,1.25139299,1536.5,1536.1,0.066]
[1673878715671,1.89773217,1536.5,1536.2,1.29406097]
[1673878715991,0.01139299,1536.5,1536.3,1.29600104]
[1673878716161,0.01139299,1536.5,1536.4,1.31314907]
[1673878716331,0.01139299,1536.5,1536.4,12.82186907]
[1673878716690,0.01139299,1536.5,1536.4,14.17186907]
[1673878717000,0.01139299,1536.5,1536.4,14.40186907]
[1673878717521,0.01139299,1536.5,1536.4,4.54314907]
[1673878717743,0.01139299,1536.5,1536.4,4.31314907]
[1673878717889,0.01139299,1536.5,1536.4,7.11893399]
[1673878718103,0.01139299,1536.5,1536.4,20.13637399]
[1673878718355,0.01139299,1536.5,1536.4,16.68879823]
[1673878718568,2.46293364,1536.9,1536.4,19.0960117]
[1673878718806,2.46293364,1536.9,1536.5,5.27278678]
[1673878719113,2.46293364,1536.9,1536.8,1.345]
[1673878719430,2.46293364,1536.9,1536.8,17.63182678]
[1673878720023,2.46293364,1536.9,1536.7,0.066]
[1673878720349,2.46293364,1536.9,1536.5,10.84905]
[1673878720566,2.46293364,1536.9,1536.8,3.3]
[1673878720795,2.46293364,1536.9,1536.6,2.26377439]
[1673878720796,3.26328074,1536.7,1536.6,2.26377439]
[1673878720951,3.26328074,1536.7,1536.6,15.44193922]
[1673878721409,3.26528074,1536.7,1536.6,15.44193922]
[1673878721577,3.26328074,1536.7,1536.6,29.80267922]
[1673878721792,0.097,1536.8,1536.7,2.0]
[1673878722025,2.46293364,1536.9,1536.8,2.0]
[1673878722232,2.46293364,1536.9,1536.8,3.50278678]
[1673878722445,2.46293364,1536.9,1536.8,6.50278678]
[1673878723211,2.46293364,1536.9,1536.8,20.86682678]
[1673878723553,2.46293364,1536.9,1536.8,7.85278678]
[1673878723728,2.46293364,1536.9,1536.8,14.35980678]
[1673878723935,2.46293364,1536.9,1536.8,23.16014846]
[1673878724089,0.00093364,1536.9,1536.8,24.51014846]
[1673878724308,0.0437222,1537.1,1536.9,0.46106636]
[1673878724563,0.0437222,1537.1,1537.0,25.71632678]
[1673878724880,0.0437222,1537.1,1537.0,28.71632678]
[1673878725092,0.0437222,1537.1,1537.0,31.94046609]
[1673878725282,0.0007222,1537.1,1537.0,31.94046609]
[1673878726192,0.01117046,1537.2,1537.1,2.0]
[1673878726404,0.01117046,1537.2,1537.1,17.70353678]
[1673878726612,0.01117046,1537.2,1537.1,24.20928678]
[1673878726879,0.01117046,1537.2,1537.1,28.26046539]
[1673878727069,0.01117046,1537.2,1537.1,20.40471539]
[1673878727249,0.01117046,1537.2,1537.1,13.89896539]
[1673878727622,0.01117046,1537.2,1537.1,20.40471539]
[1673878728220,0.01117046,1537.2,1537.1,26.91046539]
[1673878728398,0.01117046,1537.2,1537.1,28.26046539]
[1673878729515,0.16597315,1537.6,1537.1,36.41644352]
[1673878729682,0.16597315,1537.6,1537.5,4.61178678]
[1673878729879,0.16597315,1537.6,1537.5,2.53030425]
[1673878730837,0.16897315,1537.6,1537.5,15.84536425]
[1673878731030,0.16597315,1537.6,1537.5,22.34942425]
[1673878731252,0.16597315,1537.6,1537.5,25.34942425]
[1673878731458,0.16597315,1537.6,1537.5,29.39182467]
[1673878731885,0.11597315,1537.6,1537.5,29.39182467]
[1673878732723,0.06597315,1537.6,1537.5,29.39182467]
[1673878734052,0.06597315,1537.6,1537.5,33.31104599]
[1673878734351,0.01261206,1537.7,1537.5,33.73854599]
[1673878734509,0.098,1538.4,1537.7,6.811]
[1673878734722,1.01395614,1538.5,1538.2,9.12370309]
[1673878734723,0.95395614,1538.5,1538.2,9.12370309]
[1673878734979,2.39335049,1538.6,1538.3,2.52363201]
[1673878735195,0.4879,1538.5,1538.4,2.28727664]
[1673878735556,1.44185614,1538.5,1538.2,0.066]
[1673878735763,0.14418561,1538.4,1538.2,2.2724268]
[1673878736086,1.09814175,1538.4,1538.2,2.2724268]
[1673878736336,8.42712435,1538.5,1538.3,2.28031653]
[1673878736337,2.97925049,1538.5,1538.3,2.28031653]
[1673878736542,1.44185614,1538.5,1538.0,0.066]
[1673878736750,1.44185614,1538.5,1538.0,2.26994554]
[1673878736751,6.98871,1538.3,1538.0,2.26994554]
[1673878736977,6.59871,1538.3,1538.0,3.27278678]
[1673878737165,0.098,1538.3,1538.1,3.27278678]
[1673878737340,0.50795872,1538.4,1538.2,3.27278678]
[1673878737560,0.4879,1538.5,1538.3,3.27278678]
[1673878737817,0.4879,1538.6,1538.4,3.27278678]
[1673878738024,0.4879,1538.6,1538.5,3.27278678]
[1673878738454,0.4878,1538.8,1538.5,10.00261678]
[1673878738645,0.64359251,1538.8,1538.5,3.27278678]
[1673878739393,0.4878,1538.8,1538.6,3.27278678]
[1673878739549,0.4878,1538.8,1538.7,3.27278678]
[1673878739996,0.4878,1538.8,1538.6,0.066]
[1673878740243,0.4878,1538.8,1538.6,3.27278678]
[1673878740414,0.4878,1538.8,1538.7,3.50278678]
[1673878740621,0.50596897,1538.9,1538.7,3.50278678]
[1673878740833,1.74985706,1538.9,1538.6,0.066]
[1673878741101,2.0,1538.7,1538.1,0.0121]
[1673878741313,2.0,1538.7,1538.0,6.56158]
[1673878741314,0.0521227,1538.5,1538.2,3.27278678]
[1673878741528,0.0521227,1538.5,1538.3,3.27278678]
[1673878741696,0.0521227,1538.5,1538.4,3.27278678]
[1673878741910,0.0521227,1538.5,1538.4,25.39279346]
[1673878742645,0.0521227,1538.5,1538.4,28.39279346]
[1673878742862,0.0521227,1538.5,1538.4,28.62279346]
[1673878743074,0.95128043,1539.2,1538.6,6.811]
[1673878743305,0.11335186,1539.4,1539.2,6.811]
[1673878743461,0.01435186,1539.4,1539.3,3.27278678]
[1673878743941,0.01435186,1539.4,1539.3,5.27278678]
[1673878744148,0.01435186,1539.4,1539.3,12.08378678]
[1673878744360,0.01435186,1539.4,1539.3,27.51092791]
[1673878744674,0.01435186,1539.4,1539.3,31.38541133]
[1673878744828,0.01435186,1539.4,1539.3,31.36380833]
[1673878745243,0.00035186,1539.4,1539.3,37.22716856]
[1673878745509,0.95128043,1540.0,1539.3,37.22716856]
[1673878745510,0.6949,1540.1,1539.5,6.811]
[1673878745725,0.5959,1540.1,1540.0,9.76628678]
[1673878746050,0.5959,1540.1,1540.0,3.27278678]
[1673878746264,0.5959,1540.1,1540.0,6.27278678]
[1673878746881,0.5959,1540.1,1540.0,12.76628678]
[1673878747227,0.5959,1540.1,1540.0,28.07078678]
[1673878747365,0.5959,1540.1,1540.0,31.76381746]
[1673878747578,0.5959,1540.1,1540.0,8.27278678]
[1673878747994,0.5959,1540.1,1539.9,0.066]
[1673878748314,0.01995872,1540.0,1539.6,0.006]
[1673878748578,0.01995872,1540.0,1539.8,3.27278678]
[1673878748780,0.01995872,1540.0,1539.9,3.27278678]